bitfinex-derivatives/quotes_SOLF0:USTF0_20250821
["timestamp","ask_amount","ask_price","bid_price","bid_amount"]
[1755740685812,131.35,187.43,187.37,0.03563411]
[1755740688716,0.33,187.39,187.37,0.03563411]
[1755740689013,133.60438869,187.38,187.37,0.03563411]
[1755740689218,133.60438869,187.38,187.28,2.95]
[1755740689520,2.27438869,187.35,187.28,2.95]
[1755740690616,2.60438869,187.35,187.28,2.95]
[1755740692118,2.27438869,187.37,187.28,2.95]
[1755740692617,131.31,187.36,187.28,2.95]
[1755740697915,131.0,187.35,187.28,2.95]
[1755740698317,0.33,187.34,187.28,2.95]
[1755740699519,2.27438869,187.33,187.25,4.46020048]
[1755740699720,0.33,187.32,187.24,4.46020048]
[1755740699917,0.33,187.32,187.25,7.34020048]
[1755740700318,0.33,187.3,187.25,2.88]
[1755740700519,2.60438869,187.29,187.22,7.34020048]
[1755740700719,2.60438869,187.29,187.22,2.88]
[1755740701627,2.27438869,187.31,187.23,2.88]
[1755740701828,2.27438869,187.33,187.23,2.88]
[1755740702120,131.0,187.32,187.24,2.88]
[1755740703625,0.33,187.34,187.24,7.61438869]
[1755740703927,131.0,187.33,187.25,2.88]
[1755740704425,0.33,187.34,187.26,2.88]
[1755740704624,131.33,187.34,187.26,2.88]
[1755740704827,2.60438869,187.33,187.26,2.88]
[1755740705028,0.33,187.32,187.23,2.88]
[1755740705625,0.33,187.3,187.23,2.88]
[1755740706924,0.33,187.28,187.23,2.88]
[1755740707126,0.33,187.28,187.2,2.88]
[1755740707326,2.27438869,187.27,187.2,2.88]
[1755740707721,2.27438869,187.25,187.16,4.46020048]
[1755740707926,2.27438869,187.25,187.17,2.88]
[1755740711228,131.35,187.26,187.17,2.88]
[1755740712433,131.35,187.26,187.18,2.88]
[1755740712825,131.35,187.26,187.18,8.2217]
[1755740713024,0.33,187.26,187.19,2.88]
[1755740713628,0.33,187.26,187.19,8.2215]
[1755740713833,131.04,187.28,187.2,5.15438869]
[1755740714132,358.88,187.31,187.24,2.27438869]
[1755740714323,358.88,187.31,187.25,2.88]
[1755740715236,0.32,187.33,187.25,2.88]
[1755740715932,2.59438869,187.33,187.25,2.88]
[1755740716139,2.27438869,187.31,187.22,5.15438869]
[1755740716439,0.32,187.28,187.22,2.88]
[1755740717633,2.27438869,187.31,187.22,2.88]
[1755740717838,133.33438869,187.31,187.22,2.88]
[1755740718036,133.65438869,187.31,187.22,2.88]
[1755740719038,0.32,187.28,187.2,2.88]
[1755740719236,0.32,187.26,187.16,2.88]
[1755740719539,2.27438869,187.2,187.12,2.88]
[1755740719739,2.27438869,187.18,187.12,2.88]
[1755740720134,2.59438869,187.16,187.12,2.88]
[1755740720334,0.32,187.15,187.08,2.88]
[1755740720537,2.27438869,187.14,187.08,2.88]
[1755740720740,2.27438869,187.14,187.05,2.88]
[1755740720938,133.43438869,187.2,187.05,2.88]
[1755740720939,2.27438869,187.11,187.05,2.88]
[1755740721633,2.27438869,187.11,186.99,213.10650362]
[1755740721833,2.27438869,187.08,186.99,213.10650362]
[1755740722236,2.27438869,187.1,187.0,2.88]
[1755740722429,131.78,187.13,187.01,3.73610623]
[1755740722634,131.78,187.13,187.02,2.88]
[1755740723033,0.32,187.13,187.02,2.88]
[1755740723231,0.32,187.13,187.03,5.3461]
[1755740723441,0.32,187.13,187.04,2.88]
[1755740724441,131.58,187.15,187.04,2.88]
[1755740724838,131.58,187.15,187.04,8.2256]
[1755740725043,131.58,187.15,187.04,5.3456]
[1755740725240,131.58,187.15,187.05,2.88]
[1755740725439,3.73610623,187.19,187.09,2.88]
[1755740725642,131.64,187.2,187.09,2.88]
[1755740726335,131.64,187.2,187.11,2.91]
[1755740726743,0.33,187.19,187.11,2.91]
[1755740731141,131.62,187.18,187.05,5.3453]
[1755740731343,0.33,187.16,187.06,2.91]
[1755740732645,0.33,187.13,187.02,2.91]
[1755740732948,0.33,187.1,187.02,2.91]
[1755740733744,131.74,187.12,187.02,2.91]
[1755740734249,4.06610623,187.13,187.02,2.91]
[1755740734746,4.06610623,187.13,187.03,2.91]
[1755740737049,4.06610623,187.16,187.03,2.91]
[1755740737346,4.06610623,187.16,187.06,2.91]
[1755740739148,0.33,187.15,187.06,2.91]
[1755740740350,3.73610623,187.13,187.02,2.91]
[1755740740649,0.33,187.12,187.02,2.91]
[1755740742147,0.33,187.09,187.02,2.91]
[1755740742554,0.33,187.09,186.99,2.91]
[1755740742755,0.33,187.06,186.99,2.91]
[1755740745760,0.33,187.06,186.97,2.91]
[1755740746057,3.73610623,187.07,186.97,2.91]
[1755740746265,0.33,187.07,186.97,2.91]
[1755740747164,3.73610623,187.05,186.97,2.91]
[1755740747356,0.33,187.04,186.97,2.91]
[1755740748467,3.73610623,187.05,186.97,2.91]
[1755740748768,4.06610623,187.05,186.97,2.91]
[1755740752569,131.9,187.04,186.97,2.91]
[1755740754769,131.86,187.04,186.97,2.91]
[1755740754964,4.06610623,187.05,186.97,2.91]
[1755740755163,131.84,187.05,186.97,2.91]
[1755740755363,4.06610623,187.08,186.97,2.91]
[1755740755364,131.86,187.06,186.97,2.91]
[1755740755869,0.33,187.05,186.97,2.91]
[1755740756073,4.06610623,187.05,186.97,2.91]
[1755740756369,2.29436719,187.03,186.97,2.91]
[1755740759474,2.29436719,187.04,186.97,2.91]
[1755740760472,2.29436719,187.06,186.97,2.91]
[1755740760668,0.33,187.13,186.99,3.0]
[1755740760876,2.29436719,187.1,187.02,3.0]
[1755740761067,2.29436719,187.08,187.02,3.0]
[1755740761467,2.62436719,187.06,186.95,2.29436719]
[1755740761664,2.29436719,187.04,186.96,3.0]
[1755740762068,2.29436719,187.02,186.96,3.0]
[1755740764270,132.27,187.04,186.96,3.0]
[1755740764476,3.73889575,187.06,186.96,3.0]
[1755740764678,131.98,187.05,186.96,3.0]
[1755740768681,0.33,187.04,186.96,3.0]
[1755740769075,0.33,187.04,186.9,206.8295905]
[1755740769076,0.33,187.02,186.94,3.0]
[1755740769776,0.33,187.08,186.94,3.0]
[1755740769974,3.73889575,187.09,186.95,3.0]
[1755740770179,131.9,187.07,186.95,3.0]
[1755740770379,4.06889575,187.06,186.95,3.0]
[1755740770884,4.06889575,187.06,186.97,3.0]
[1755740771081,132.36,187.05,186.97,3.0]
[1755740771274,132.36,187.05,186.97,8.3477]
[1755740771878,132.4,187.05,186.97,8.3477]
[1755740772278,132.4,187.05,186.98,5.3475]
[1755740772481,132.38,187.05,186.98,5.3475]
[1755740772678,132.38,187.05,186.99,3.0]
[1755740774780,132.36,187.05,186.99,3.0]
[1755740775984,4.06889575,187.06,186.99,3.0]
[1755740776187,132.3,187.05,186.99,3.0]
[1755740778488,0.93050616,187.13,186.99,3.0]
[1755740778691,363.30889575,187.14,187.01,3.0]
[1755740779081,132.32,187.13,187.01,3.0]
[1755740779484,359.24,187.14,187.03,3.73889575]
[1755740779691,359.24,187.14,187.04,3.0]
[1755740780585,3.73889575,187.2,187.07,3.0]
[1755740780790,132.36,187.19,187.07,3.0]
[1755740781089,132.36,187.19,187.11,3.0]
[1755740781288,0.33,187.21,187.11,3.0]
[1755740781590,359.71,187.24,187.11,3.0]
[1755740781890,132.38,187.23,187.13,3.0]
[1755740783292,0.33,187.22,187.13,3.0]
[1755740783895,0.33,187.19,187.09,3.0]
[1755740784589,132.42,187.18,187.09,3.0]
[1755740784788,132.42,187.17,187.09,3.0]
[1755740786899,0.33,187.16,187.04,3.04]
[1755740787395,0.33,187.16,187.04,8.3855]
[1755740788289,0.33,187.16,187.04,3.04]
[1755740788599,132.4,187.16,187.04,3.04]
[1755740788996,132.4,187.16,187.09,3.04]
[1755740790096,0.33,187.15,187.05,3.04]
[1755740791300,0.33,187.15,187.05,8.3854]
[1755740791497,0.33,187.15,187.05,3.04]
[1755740793005,0.33,187.15,187.06,5.3452]
[1755740793204,132.71,187.15,187.06,5.3452]
[1755740793800,132.71,187.15,187.05,3.04]
[1755740795603,132.71,187.15,187.06,5.345]
[1755740795807,132.71,187.15,187.05,3.04]
[1755740796108,0.33,187.14,187.05,3.04]
[1755740796906,132.3,187.16,187.09,3.04]
[1755740797610,132.3,187.16,187.1,5.3441]
[1755740797809,132.3,187.16,187.09,3.04]
[1755740798408,132.3,187.16,187.09,8.3843]
[1755740799414,132.3,187.16,187.09,3.04]
[1755740800006,132.3,187.16,187.11,5.3436]
[1755740800311,132.34,187.19,187.12,3.04]
[1755740800712,132.34,187.19,187.12,8.3835]
[1755740801714,0.33,187.2,187.12,8.3835]
[1755740801917,132.65,187.2,187.12,8.3835]
[1755740802212,132.65,187.2,187.12,3.04]
[1755740803111,132.65,187.2,187.13,5.3432]
[1755740804011,132.65,187.2,187.12,3.04]
[1755740804616,0.33,187.19,187.12,3.04]
[1755740806014,5.98414903,187.31,187.12,3.04]
[1755740806213,0.33,187.27,187.12,6.77889575]
[1755740806420,359.71,187.24,187.15,5.3426]
[1755740807020,359.38,187.24,187.15,3.04]
[1755740807211,132.28,187.25,187.15,3.04]
[1755740807718,132.61,187.25,187.15,3.04]
[1755740808215,3.73889575,187.29,187.12,3.73889575]
[1755740808412,3.73889575,187.29,187.08,4.46683011]
[1755740808413,0.33,187.28,187.18,3.04]
[1755740808608,132.42,187.27,187.19,5.3413]
[1755740810416,132.42,187.27,187.2,5.3412]
[1755740810616,132.42,187.27,187.18,3.04]
[1755740811218,132.42,187.27,187.21,5.3407]
[1755740812114,0.33,187.28,187.21,5.3407]
[1755740812320,132.65,187.28,187.16,3.04]
[1755740813516,132.65,187.28,187.23,5.3402]
[1755740813719,132.65,187.28,187.23,3.04]
[1755740813917,0.33,187.27,187.16,3.04]
[1755740814415,0.33,187.27,187.2,5.3411]
[1755740814618,0.33,187.27,187.16,3.04]
[1755740815622,0.33,187.27,187.19,5.3415]
[1755740816325,0.33,187.27,187.18,5.3418]
[1755740816520,0.33,187.27,187.16,3.04]
[1755740816929,0.33,187.27,187.18,5.3417]
[1755740817127,0.33,187.27,187.16,3.04]
[1755740817323,0.33,187.27,187.2,5.3412]
[1755740817724,132.53,187.27,187.2,5.3412]
[1755740818528,132.53,187.27,187.19,3.04]
[1755740818723,0.33,187.26,187.15,3.04]
[1755740819326,0.33,187.26,187.16,5.3423]
[1755740819529,0.33,187.26,187.15,3.04]
[1755740820124,0.33,187.25,187.15,3.04]
[1755740820320,0.33,187.29,187.16,3.04]
[1755740820522,0.33,187.29,187.18,3.73889575]
[1755740820729,0.33,187.29,187.19,3.04]
[1755740820930,0.33,187.29,187.2,5.3412]
[1755740821231,0.33,187.29,187.19,3.04]
[1755740821633,0.33,187.29,187.23,3.04]
[1755740821833,0.33,187.29,187.19,3.04]
[1755740822630,0.33,187.29,187.22,8.3804]
[1755740822931,0.33,187.29,187.22,3.04]
[1755740826132,0.33,187.29,187.18,6.77889575]
[1755740826724,0.33,187.29,187.19,3.04]
[1755740827235,0.33,187.29,187.22,8.3804]
[1755740827627,0.33,187.29,187.23,5.3402]
[1755740827829,0.33,187.29,187.22,3.04]
[1755740828227,0.33,187.29,187.24,5.3399]
[1755740828433,132.26,187.3,187.25,3.04]
[1755740828739,132.59,187.3,187.25,3.04]
[1755740829436,359.18,187.34,187.26,3.04]
[1755740829828,359.18,187.34,187.28,5.3387]
[1755740830032,359.18,187.34,187.28,8.3787]
[1755740831430,359.18,187.34,187.3,3.04]
[1755740834330,359.18,187.34,187.31,3.04]
[1755740835037,359.51,187.34,187.27,3.04]
[1755740835232,359.51,187.34,187.21,3.73889575]
[1755740835540,0.33,187.33,187.24,8.3801]
[1755740835742,0.33,187.33,187.24,3.04]
[1755740837838,132.14,187.32,187.21,3.73889575]
[1755740838040,132.14,187.32,187.22,3.04]
[1755740838236,132.14,187.32,187.25,5.3397]
[1755740838442,132.14,187.32,187.23,2.28699933]
[1755740838642,132.14,187.32,187.24,3.04]
[1755740839548,132.14,187.32,187.25,5.3396]
[1755740840649,132.14,187.32,187.24,3.04]
[1755740841948,0.33,187.31,187.24,3.04]
[1755740842147,0.33,187.31,187.21,5.3407]
[1755740842547,0.33,187.31,187.2,10.66819933]
[1755740842751,134.42699933,187.32,187.2,10.66819933]
[1755740842752,0.33,187.28,187.2,10.66819933]
[1755740842951,132.1,187.27,187.2,10.66819933]
[1755740843152,132.1,187.27,187.21,5.3409]
[1755740843943,132.1,187.27,187.2,10.66819933]
[1755740844148,132.1,187.27,187.2,5.32699933]
[1755740844552,0.33,187.26,187.17,2.28699933]
[1755740844751,0.33,187.26,187.18,3.04]
[1755740844948,132.1,187.27,187.18,3.04]
[1755740845143,132.1,187.27,187.21,3.04]
[1755740845348,2.61699933,187.3,187.21,3.04]
[1755740845649,132.14,187.29,187.21,3.04]
[1755740846351,0.33,187.33,187.23,2.28699933]
[1755740846558,132.1,187.32,187.24,2.81]
[1755740847151,0.33,187.33,187.25,5.3398]
[1755740847345,132.18,187.31,187.24,2.81]
[1755740849553,0.33,187.3,187.24,2.81]
[1755740851453,0.33,187.3,187.2,10.43819933]
[1755740851857,0.33,187.3,187.2,5.09699933]
[1755740852260,0.33,187.3,187.21,5.3409]
[1755740854465,0.33,187.3,187.2,10.43819933]
[1755740854963,132.04,187.29,187.2,10.43819933]
[1755740855260,132.04,187.29,187.2,5.09699933]
[1755740855453,2.61699933,187.28,187.2,2.81]
[1755740855762,2.61699933,187.28,187.13,8.97350045]
[1755740855763,0.33,187.32,187.22,2.28699933]
[1755740855952,132.14,187.31,187.25,8.1498]
[1755740856151,132.14,187.31,187.25,2.81]
[1755740857364,132.14,187.31,187.25,5.09699933]
[1755740857567,132.14,187.31,187.25,10.43659933]
[1755740857760,132.14,187.31,187.25,5.09699933]
[1755740858461,132.14,187.31,187.25,2.81]
[1755740859661,0.33,187.3,187.23,2.28699933]
[1755740859858,0.33,187.3,187.21,2.81]
[1755740860261,0.33,187.3,187.22,5.3406]
[1755740860873,132.14,187.31,187.23,5.3402]
[1755740861064,132.14,187.31,187.24,2.81]
[1755740861266,132.08,187.3,187.24,2.81]
[1755740862569,132.08,187.3,187.2,9.58227862]
[1755740862570,2.61699933,187.29,187.2,9.58227862]
[1755740862764,2.61699933,187.29,187.2,5.09699933]
[1755740863467,2.61699933,187.29,187.2,2.81]
[1755740867367,0.33,187.28,187.2,2.81]
[1755740868468,2.28699933,187.26,187.17,6.77227862]
[1755740868663,0.33,187.25,187.16,7.29527929]
[1755740869464,5.98414903,187.35,187.22,2.81]
[1755740869669,132.32,187.34,187.24,2.28699933]
[1755740869865,2.28699933,187.32,187.24,2.28699933]
[1755740870068,2.28699933,187.29,187.22,2.81]
[1755740870273,0.33,187.28,187.19,6.77227862]
[1755740870569,5.98414903,187.34,187.2,2.81]
[1755740870761,132.38,187.3,187.2,4.48527929]
[1755740870960,132.38,187.3,187.21,2.81]
[1755740871266,132.38,187.3,187.2,4.48527929]
[1755740871470,0.33,187.31,187.22,5.09699933]
[1755740871665,0.33,187.31,187.22,2.28699933]
[1755740871867,0.33,187.31,187.24,5.3399]
[1755740872067,132.46,187.32,187.23,7.29527929]
[1755740872272,132.46,187.32,187.26,2.81]
[1755740874169,132.79,187.32,187.26,2.81]
[1755740874574,0.33,187.31,187.22,2.28699933]
[1755740875070,0.33,187.31,187.21,2.81]
[1755740875570,2.28699933,187.3,187.21,2.81]
[1755740875973,0.33,187.31,187.21,7.29527929]
[1755740876173,0.33,187.31,187.21,4.48527929]
[1755740876367,0.33,187.31,187.24,2.81]
[1755740878076,0.32,187.29,187.2,2.81]
[1755740881075,0.32,187.29,187.2,7.29527929]
[1755740881667,2.28699933,187.31,187.22,2.81]
[1755740881875,132.64,187.33,187.23,2.81]
[1755740882079,132.64,187.33,187.24,2.81]
[1755740882577,0.32,187.32,187.24,2.81]
[1755740882779,2.28699933,187.31,187.24,2.81]
[1755740883877,0.32,187.32,187.24,2.81]
[1755740883878,2.28699933,187.32,187.24,2.81]
[1755740884978,2.60699933,187.32,187.24,2.81]
[1755740885876,0.32,187.31,187.21,7.29527929]
[1755740886074,2.60699933,187.28,187.21,2.81]
[1755740886379,2.28699933,187.28,187.21,2.81]
[1755740887478,132.4,187.3,187.21,7.29527929]
[1755740887679,132.4,187.3,187.22,2.81]
[1755740888178,132.4,187.3,187.22,7.29527929]
[1755740888780,132.4,187.3,187.23,2.81]
[1755740888983,132.4,187.3,187.24,2.81]
[1755740889783,132.4,187.3,187.25,5.3398]
[1755740890083,132.4,187.3,187.24,2.81]
[1755740890478,132.4,187.3,187.24,8.15]
[1755740890677,132.4,187.3,187.24,2.81]
[1755740891077,132.4,187.3,187.24,8.15]
[1755740891679,132.4,187.3,187.26,2.81]
[1755740891979,2.60699933,187.35,187.26,2.81]
[1755740891980,0.32,187.35,187.26,2.81]
[1755740892278,0.32,187.35,187.27,5.339]
[1755740892474,0.32,187.35,187.26,2.81]
[1755740892875,0.32,187.35,187.27,5.3392]
[1755740893585,0.32,187.35,187.26,8.1495]
[1755740893784,0.32,187.35,187.26,2.81]
[1755740896176,0.32,187.35,187.26,8.1494]
[1755740899588,0.32,187.35,187.27,8.1491]
[1755740899777,0.32,187.35,187.25,4.48527929]
[1755740899983,132.36,187.36,187.25,2.81]
[1755740899984,2.28699933,187.32,187.25,2.81]
[1755740900490,0.32,187.33,187.25,8.1498]
[1755740900786,0.32,187.33,187.25,2.81]
[1755740902385,0.32,187.33,187.25,8.1497]
[1755740903186,0.32,187.33,187.27,2.81]
[1755740903391,2.28699933,187.34,187.27,2.81]
[1755740903886,132.56,187.36,187.27,2.81]
[1755740904090,132.24,187.36,187.28,7.29527929]
[1755740904295,132.24,187.36,187.29,2.81]
[1755740905392,2.60699933,187.42,187.31,2.81]
[1755740905592,2.60699933,187.42,187.34,2.81]
[1755740906490,0.33,187.39,187.3,2.9]
[1755740907290,2.28699933,187.42,187.32,2.28699933]
[1755740907591,2.28699933,187.42,187.33,2.9]
[1755740908791,0.33,187.41,187.33,2.9]
[1755740909286,2.28699933,187.42,187.33,2.9]
[1755740909489,2.28699933,187.44,187.33,2.9]
[1755740910090,0.04108104,187.4,187.35,2.9]
[1755740910287,0.04108104,187.4,187.36,2.9]
[1755740910485,0.04108104,187.4,187.37,2.94102838]
[1755740910686,0.04108104,187.4,187.38,2.9]
[1755740911094,0.04108104,187.4,187.39,2.9]
[1755740916098,0.04108104,187.4,187.38,2.9]
[1755740916294,0.04108104,187.4,187.39,2.9]
[1755740917590,0.04108104,187.4,187.37,2.94102838]
[1755740917989,0.04108104,187.4,187.37,0.04102838]
[1755740918190,0.04108104,187.4,187.38,2.9]
[1755740918392,0.33,187.39,187.37,0.04102838]
[1755740919092,0.04108104,187.4,187.38,2.9]
[1755740919694,0.04108104,187.4,187.39,2.9]
[1755740920391,0.04108104,187.4,187.37,0.04102838]
[1755740920392,0.04108104,187.4,187.37,2.94102838]
[1755740921189,0.04108104,187.4,187.37,0.04102838]
[1755740921389,0.04108104,187.4,187.38,2.9]
[1755740924094,0.33,187.39,187.37,0.04102838]
[1755740924696,0.04108104,187.4,187.37,0.04102838]
[1755740925597,0.04108104,187.4,187.39,2.9]
[1755740927202,0.04108104,187.4,187.39,8.2358]
[1755740928293,132.26,187.47,187.41,5.335]
[1755740928699,132.26,187.47,187.44,2.9]
[1755740929703,132.26,187.47,187.44,2.94052631]
[1755740930796,2.65699933,187.5,187.44,2.94052631]
[1755740931399,0.37,187.5,187.44,2.94052631]
[1755740935606,2.65699933,187.5,187.44,0.04052631]
[1755740935807,0.37,187.49,187.44,0.04052631]
[1755740936012,0.37,187.45,187.44,0.04052631]
[1755740938814,0.37,187.47,187.44,0.04052631]
[1755740939110,0.37,187.46,187.44,0.04052631]
[1755740939512,2.28699933,187.48,187.44,0.04052631]
[1755740939513,0.37,187.45,187.44,0.04052631]
[1755740940210,2.28699933,187.49,187.44,0.04052631]
[1755740940410,0.37,187.48,187.44,0.04052631]
[1755740940708,2.28699933,187.49,187.44,0.04052631]
[1755740940908,0.37,187.45,187.44,0.04052631]
[1755740942010,0.91,187.45,187.44,0.04052631]
[1755740942406,0.37,187.45,187.44,0.04052631]
[1755740951310,0.91,187.45,187.33,4.48527929]
[1755740951516,2.28699933,187.38,187.32,3.04]
[1755740954122,0.37,187.41,187.32,3.04]
[1755740954319,2.28699933,187.4,187.32,3.04]
[1755740956318,0.03708075,187.38,187.32,3.04]
[1755740956518,0.03708075,187.38,187.35,3.04]
[1755740956914,0.40708075,187.38,187.35,3.04]
[1755740957117,0.03708075,187.38,187.34,0.03571096]
[1755740957310,0.37,187.36,187.34,0.03571096]
[1755740957513,2.28699933,187.37,187.34,0.03571096]
[1755740957713,0.37,187.35,187.34,0.03571096]
[1755740958622,2.65699933,187.35,187.34,0.03571096]
[1755740962329,0.37,187.34,187.25,3.04]
[1755740962630,2.28699933,187.32,187.25,3.04]
[1755740963130,2.65699933,187.32,187.25,3.04]
[1755740963634,0.04090826,187.3,187.25,3.04]
[1755740963834,2.28699933,187.29,187.26,3.04]
[1755740964236,0.04090826,187.3,187.23,3.04]
[1755740964634,134.23699933,187.35,187.26,3.04]
[1755740964834,134.23699933,187.35,187.26,8.3795]
[1755740965136,134.23699933,187.35,187.27,3.04]
[1755740965341,131.58,187.35,187.27,8.3792]
[1755740965535,131.58,187.35,187.28,3.04]
[1755740968531,5.98414903,187.46,187.29,2.94]
[1755740968532,2.28699933,187.39,187.29,2.94]
[1755740969536,2.68699933,187.39,187.29,2.94]
[1755740971234,0.4,187.35,187.25,2.94]
[1755740972136,0.4,187.35,187.27,2.94]
[1755740972332,2.68699933,187.39,187.28,2.94]
[1755740973137,2.68699933,187.39,187.31,2.94]
[1755740973541,2.28699933,187.38,187.31,2.94]
[1755740973844,133.96699933,187.41,187.31,2.94]
[1755740974136,2.28699933,187.41,187.32,5.3376]
[1755740974338,2.28699933,187.41,187.33,2.94]
[1755740974941,2.28699933,187.41,187.34,2.94]
[1755740976438,2.28699933,187.41,187.34,8.2772]
[1755740978346,2.28699933,187.41,187.34,2.94]
[1755740979145,0.4,187.4,187.34,2.94]
[1755740979448,0.4,187.4,187.3,10.56539933]
[1755740979845,0.4,187.4,187.31,2.94]
[1755740980044,0.4,187.4,187.33,2.94]
[1755740981647,2.68699933,187.38,187.3,2.94]
[1755740983650,2.28699933,187.38,187.3,2.94]
[1755740983850,0.4,187.34,187.27,2.94]
[1755740985449,2.28699933,187.33,187.27,2.94]
[1755740985953,2.28699933,187.38,187.27,5.22699933]
[1755740985954,0.4,187.37,187.27,5.22699933]
[1755740986156,0.4,187.37,187.28,2.94]
[1755740986450,0.4,187.37,187.28,8.2787]
[1755740986651,0.4,187.37,187.29,2.94]
[1755740991853,0.4,187.37,187.3,5.3381]
[1755740992056,2.68699933,187.4,187.31,2.94]
[1755740993061,2.68699933,187.4,187.31,8.2781]
[1755740993460,0.4,187.4,187.31,8.2781]
[1755740993768,2.68699933,187.4,187.31,2.94]
[1755740994961,2.68699933,187.4,187.31,8.2781]
[1755740995864,2.68699933,187.4,187.32,2.94]
[1755740997669,0.4,187.4,187.32,2.94]
[1755741000468,2.28699933,187.38,187.32,2.94]
[1755741000667,2.69699933,187.41,187.32,2.94]
[1755741001269,2.69699933,187.41,187.32,8.2776]
[1755741001462,2.69699933,187.41,187.33,2.94]
[1755741004069,0.41,187.41,187.33,2.94]
[1755741004569,0.41,187.41,187.35,2.94]
[1755741005162,131.6,187.42,187.35,8.2767]
[1755741005373,131.6,187.42,187.36,2.94]
[1755741007767,8.94543712,187.51,187.34,7.62419933]
[1755741007768,0.41,187.48,187.38,2.94]
[1755741007973,2.69699933,187.52,187.41,2.94]
[1755741008170,131.58,187.54,187.45,5.3339]
[1755741008474,131.58,187.54,187.46,2.94]
[1755741008674,131.58,187.54,187.46,9.71227862]
[1755741008874,131.58,187.54,187.47,2.94]
[1755741009370,131.58,187.54,187.48,2.94]
[1755741009571,2.28699933,187.58,187.48,8.2732]
[1755741009773,2.28699933,187.58,187.48,2.94]
[1755741010074,2.69699933,187.59,187.49,2.94]
[1755741010875,2.28699933,187.59,187.49,2.94]
[1755741011075,0.41,187.58,187.49,2.94]
[1755741015077,2.28699933,187.56,187.49,2.94]
[1755741015273,0.4,187.55,187.49,2.94]
[1755741015678,2.68699933,187.53,187.45,2.94]
[1755741015873,134.18699933,187.53,187.45,2.94]
[1755741016878,131.9,187.53,187.45,2.94]
[1755741018282,131.5,187.53,187.45,2.94]
[1755741018485,0.4,187.52,187.45,2.94]
[1755741020082,0.4,187.5,187.41,2.28699933]
[1755741020683,0.4,187.5,187.42,2.94]
[1755741021083,2.28699933,187.51,187.42,2.94]
[1755741021281,131.9,187.53,187.42,8.2747]
[1755741021484,131.9,187.53,187.43,2.94]
[1755741021880,131.9,187.53,187.44,2.94]
[1755741024783,131.5,187.53,187.45,2.94]
[1755741024988,0.4,187.58,187.48,2.94]
[1755741024989,131.88,187.58,187.48,2.94]
[1755741026485,131.88,187.58,187.5,5.3326]
[1755741026680,131.88,187.58,187.51,2.94]
[1755741030796,131.46,187.57,187.51,2.94]
[1755741031294,131.86,187.57,187.51,2.94]
[1755741031698,131.46,187.57,187.51,2.94]
[1755741032501,131.46,187.57,187.51,8.2722]